[Event "Titled Tuesday Blitz September 20 Late 2022"]
[White "Gubajdullin, Alexei"]
[Black "Becerra, Juan David"]
[WhiteFideId "4141202"]
[BlackFideId "4404998"]
[WhiteElo "2195"]
[BlackElo "2278"]
[Result "1-0"]
[Round "10"]
[TimeControl "180+1"]
[Date "2022.09.20"]
[WhiteClock "0:01:24"]
[BlackClock "0:00:09"]

1. d4 {[%clk 0:03:00]}  d5 {[%clk 0:02:25]} 2. Nf3 {[%clk 0:02:57]}  Nf6 {[%clk 0:02:23]} 3. Bf4 {[%clk 0:02:56]}  c5 {[%clk 0:02:22]} 4. e3 {[%clk 0:02:55]}  Nc6 {[%clk 0:02:20]} 5. Nbd2 {[%clk 0:02:55]}  Bg4 {[%clk 0:02:19]} 6. c3 {[%clk 0:02:54]}  e6 {[%clk 0:02:19]} 7. Qb3 {[%clk 0:02:53]}  Qb6 {[%clk 0:02:19]} 8. Qxb6 {[%clk 0:02:52]}  axb6 {[%clk 0:02:20]} 9. Bc7 {[%clk 0:02:51]}  Nd7 {[%clk 0:02:19]} 10. Bb5 {[%clk 0:02:51]}  Rc8 {[%clk 0:02:12]} 11. Bg3 {[%clk 0:02:48]}  f6 {[%clk 0:02:08]} 12. O-O {[%clk 0:02:41]}  Be7 {[%clk 0:02:06]} 13. c4 {[%clk 0:02:37]}  h5 {[%clk 0:01:38]} 14. h3 {[%clk 0:02:35]}  Bf5 {[%clk 0:01:38]} 15. dxc5 {[%clk 0:02:24]}  bxc5 {[%clk 0:01:30]} 16. Rfe1 {[%clk 0:02:19]}  Bh7 {[%clk 0:01:18]} 17. e4 {[%clk 0:02:17]}  d4 {[%clk 0:01:17]} 18. e5 {[%clk 0:02:16]}  Kf7 {[%clk 0:01:14]} 19. Ne4 {[%clk 0:01:39]}  Bxe4 {[%clk 0:01:09]} 20. Rxe4 {[%clk 0:01:38]}  f5 {[%clk 0:01:09]} 21. Re2 {[%clk 0:01:36]}  g5 {[%clk 0:01:08]} 22. h4 {[%clk 0:01:35]}  f4 {[%clk 0:00:48]} 23. Bh2 {[%clk 0:01:35]}  g4 {[%clk 0:00:48]} 24. Ng5+ {[%clk 0:01:35]}  Bxg5 {[%clk 0:00:48]} 25. hxg5 {[%clk 0:01:34]}  Ndxe5 {[%clk 0:00:46]} 26. Bxf4 {[%clk 0:01:33]}  Ng6 {[%clk 0:00:46]} 27. Bd6 {[%clk 0:01:32]}  b6 {[%clk 0:00:38]} 28. Rae1 {[%clk 0:01:31]}  Rhe8 {[%clk 0:00:35]} 29. Ba6 {[%clk 0:01:30]}  Rcd8 {[%clk 0:00:31]} 30. Bc7 {[%clk 0:01:30]}  Rd7 {[%clk 0:00:22]} 31. Bxb6 {[%clk 0:01:29]}  d3 {[%clk 0:00:16]} 32. Rd2 {[%clk 0:01:29]}  Nce5 {[%clk 0:00:11]} 33. Bb5 {[%clk 0:01:27]}  Rb7 {[%clk 0:00:10]} 34. Bxe8+ {[%clk 0:01:25]}  Kxe8 {[%clk 0:00:11]} 35. Bxc5 {[%clk 0:01:25]}  Rc7 {[%clk 0:00:09]} 36. Bd6 {[%clk 0:01:24]} 1-0


[Site "https://www.chess.com"]

[Event "Titled Tuesday Blitz September 20 Late 2022"]
[White "Koellner, Ruben Gideon"]
[Black "Tristan, Leonardo"]
[WhiteFideId "12993093"]
[BlackFideId "113816"]
[WhiteElo "2286"]
[BlackElo "2404"]
[Result "0-1"]
[Round "10"]
[TimeControl "180+1"]
[Date "2022.09.20"]
[WhiteClock "0:00:03"]
[BlackClock "0:00:22"]

1. d4 {[%clk 0:03:00]}  d5 {[%clk 0:03:00]} 2. Nf3 {[%clk 0:03:00]}  Nf6 {[%clk 0:03:00]} 3. Nbd2 {[%clk 0:03:00]}  Bf5 {[%clk 0:02:57]} 4. e3 {[%clk 0:03:00]}  e6 {[%clk 0:02:55]} 5. Ne5 {[%clk 0:03:00]}  Nbd7 {[%clk 0:02:47]} 6. g4 {[%clk 0:02:59]}  Be4 {[%clk 0:02:40]} 7. f3 {[%clk 0:02:58]}  Nxe5 {[%clk 0:02:33]} 8. dxe5 {[%clk 0:02:53]}  Nxg4 {[%clk 0:02:33]} 9. Nxe4 {[%clk 0:02:53]}  Nxe5 {[%clk 0:02:25]} 10. Ng3 {[%clk 0:02:48]}  h5 {[%clk 0:02:25]} 11. f4 {[%clk 0:02:41]}  h4 {[%clk 0:02:21]} 12. Ne2 {[%clk 0:02:22]}  Nc4 {[%clk 0:02:20]} 13. Nc3 {[%clk 0:02:11]}  h3 {[%clk 0:02:05]} 14. Bxc4 {[%clk 0:02:08]}  Qh4+ {[%clk 0:02:06]} 15. Kf1 {[%clk 0:01:58]}  dxc4 {[%clk 0:02:06]} 16. Bd2 {[%clk 0:01:47]}  O-O-O {[%clk 0:02:02]} 17. Qe2 {[%clk 0:01:45]}  Bc5 {[%clk 0:01:12]} 18. Ne4 {[%clk 0:01:34]}  Bb6 {[%clk 0:01:10]} 19. Rg1 {[%clk 0:01:22]}  Qh7 {[%clk 0:01:08]} 20. Qxc4 {[%clk 0:00:44]}  Rxd2 {[%clk 0:01:07]} 21. Nxd2 {[%clk 0:00:39]}  Bxe3 {[%clk 0:01:08]} 22. Ke2 {[%clk 0:00:20]}  Bxg1 {[%clk 0:00:43]} 23. Rxg1 {[%clk 0:00:21]}  Rd8 {[%clk 0:00:43]} 24. Nf3 {[%clk 0:00:17]}  Rd5 {[%clk 0:00:24]} 25. Rd1 {[%clk 0:00:12]}  b5 {[%clk 0:00:23]} 26. Qc3 {[%clk 0:00:03]}  Qe4+ {[%clk 0:00:22]} 0-1


[Site "https://www.chess.com"]

[Event "Titled Tuesday Blitz September 20 Late 2022"]
[White "Lewtak, Damian"]
[Black "Iliaguev, Nisim"]
[WhiteFideId "1141724"]
[BlackFideId "2817276"]
[WhiteElo "2329"]
[BlackElo "2107"]
[Result "1-0"]
[Round "10"]
[TimeControl "180+1"]
[Date "2022.09.20"]
[WhiteClock "0:00:38"]
[BlackClock "0:00:18"]

1. d4 {[%clk 0:02:59]}  Nf6 {[%clk 0:02:58]} 2. Nf3 {[%clk 0:02:58]}  e6 {[%clk 0:02:56]} 3. c4 {[%clk 0:02:58]}  c5 {[%clk 0:02:56]} 4. d5 {[%clk 0:02:58]}  exd5 {[%clk 0:02:56]} 5. cxd5 {[%clk 0:02:58]}  d6 {[%clk 0:02:57]} 6. Nc3 {[%clk 0:02:57]}  Be7 {[%clk 0:02:56]} 7. e4 {[%clk 0:02:52]}  O-O {[%clk 0:02:56]} 8. a4 {[%clk 0:02:51]}  Bg4 {[%clk 0:02:56]} 9. h3 {[%clk 0:02:46]}  Bxf3 {[%clk 0:02:56]} 10. Qxf3 {[%clk 0:02:46]}  Re8 {[%clk 0:02:56]} 11. Bd3 {[%clk 0:02:42]}  Nbd7 {[%clk 0:02:56]} 12. Bc2 {[%clk 0:02:41]}  Bf8 {[%clk 0:02:56]} 13. O-O {[%clk 0:02:40]}  g6 {[%clk 0:02:56]} 14. Qg3 {[%clk 0:02:39]}  a6 {[%clk 0:02:48]} 15. Re1 {[%clk 0:02:20]}  Bg7 {[%clk 0:02:46]} 16. f4 {[%clk 0:02:19]}  Qc7 {[%clk 0:02:43]} 17. Qf3 {[%clk 0:02:11]}  Rab8 {[%clk 0:02:41]} 18. a5 {[%clk 0:02:05]}  c4 {[%clk 0:02:39]} 19. Be3 {[%clk 0:02:00]}  Nc5 {[%clk 0:02:33]} 20. e5 {[%clk 0:02:00]}  dxe5 {[%clk 0:02:18]} 21. fxe5 {[%clk 0:01:58]}  Rxe5 {[%clk 0:02:17]} 22. Bf4 {[%clk 0:01:55]}  Nfd7 {[%clk 0:02:11]} 23. Bxe5 {[%clk 0:01:53]}  Nxe5 {[%clk 0:02:12]} 24. Qg3 {[%clk 0:01:48]}  Rd8 {[%clk 0:02:04]} 25. Rad1 {[%clk 0:01:44]}  Qd6 {[%clk 0:02:03]} 26. Ne4 {[%clk 0:01:40]}  Nxe4 {[%clk 0:02:03]} 27. Rxe4 {[%clk 0:01:41]}  h5 {[%clk 0:01:52]} 28. Kh1 {[%clk 0:01:40]}  Rc8 {[%clk 0:01:20]} 29. Rde1 {[%clk 0:01:34]}  f6 {[%clk 0:01:20]} 30. Rxe5 {[%clk 0:01:25]}  fxe5 {[%clk 0:01:20]} 31. Bxg6 {[%clk 0:01:09]}  Qxd5 {[%clk 0:01:15]} 32. Qg5 {[%clk 0:01:03]}  Qxa5 {[%clk 0:00:57]} 33. Rd1 {[%clk 0:00:53]}  Rf8 {[%clk 0:00:24]} 34. Qxh5 {[%clk 0:00:53]}  Rf6 {[%clk 0:00:24]} 35. Rd7 {[%clk 0:00:39]}  Qb6 {[%clk 0:00:18]} 36. Qh7+ {[%clk 0:00:37]}  Kf8 {[%clk 0:00:18]} 37. Qxg7# {[%clk 0:00:38]} 1-0


[Site "https://www.chess.com"]

[Event "Titled Tuesday Blitz September 20 Late 2022"]
[White "Martinez Alcantara, Jose Eduardo"]
[Black "Pakleza, Zbigniew"]
[WhiteFideId "3805662"]
[BlackFideId "1119290"]
[WhiteElo "2703"]
[BlackElo "2411"]
[Result "0-1"]
[Round "10"]
[TimeControl "180+1"]
[Date "2022.09.20"]
[WhiteClock "0:01:15"]
[BlackClock "0:00:21"]

1. e4 {[%clk 0:03:00]}  d6 {[%clk 0:02:59]} 2. d4 {[%clk 0:02:58]}  Nf6 {[%clk 0:03:00]} 3. Nc3 {[%clk 0:02:58]}  c6 {[%clk 0:03:00]} 4. f3 {[%clk 0:02:58]}  Qb6 {[%clk 0:03:00]} 5. Bc4 {[%clk 0:02:55]}  e6 {[%clk 0:03:00]} 6. Nge2 {[%clk 0:02:54]}  d5 {[%clk 0:03:00]} 7. Bb3 {[%clk 0:02:54]}  Be7 {[%clk 0:03:00]} 8. O-O {[%clk 0:02:55]}  O-O {[%clk 0:03:01]} 9. Kh1 {[%clk 0:02:55]}  Qd8 {[%clk 0:02:59]} 10. Be3 {[%clk 0:02:54]}  b5 {[%clk 0:02:54]} 11. a4 {[%clk 0:02:54]}  b4 {[%clk 0:02:54]} 12. Nb1 {[%clk 0:02:52]}  a5 {[%clk 0:02:55]} 13. Nd2 {[%clk 0:02:50]}  Ba6 {[%clk 0:02:50]} 14. c4 {[%clk 0:02:50]}  bxc3 {[%clk 0:02:44]} 15. bxc3 {[%clk 0:02:51]}  Nbd7 {[%clk 0:02:39]} 16. Re1 {[%clk 0:02:51]}  Rb8 {[%clk 0:02:36]} 17. Nf4 {[%clk 0:02:46]}  Qc7 {[%clk 0:02:30]} 18. e5 {[%clk 0:02:45]}  Ne8 {[%clk 0:02:29]} 19. Rc1 {[%clk 0:02:32]}  Nb6 {[%clk 0:02:17]} 20. c4 {[%clk 0:02:27]}  dxc4 {[%clk 0:02:01]} 21. Nxc4 {[%clk 0:02:27]}  Bxc4 {[%clk 0:01:47]} 22. Bxc4 {[%clk 0:02:28]}  Nxc4 {[%clk 0:01:37]} 23. Rxc4 {[%clk 0:02:29]}  Qd7 {[%clk 0:01:25]} 24. Qc2 {[%clk 0:02:28]}  Rc8 {[%clk 0:00:45]} 25. Rc1 {[%clk 0:02:25]}  Bg5 {[%clk 0:00:41]} 26. Rxc6 {[%clk 0:02:12]}  Bxf4 {[%clk 0:00:41]} 27. Rxc8 {[%clk 0:02:02]}  Bxe3 {[%clk 0:00:41]} 28. Rd1 {[%clk 0:02:02]}  g6 {[%clk 0:00:27]} 29. Rc3 {[%clk 0:01:54]}  Bg5 {[%clk 0:00:25]} 30. Rc5 {[%clk 0:01:54]}  Ng7 {[%clk 0:00:17]} 31. g4 {[%clk 0:01:55]}  h5 {[%clk 0:00:15]} 32. h3 {[%clk 0:01:52]}  Qb7 {[%clk 0:00:13]} 33. Qe4 {[%clk 0:01:44]}  Qb3 {[%clk 0:00:13]} 34. Rg1 {[%clk 0:01:37]}  hxg4 {[%clk 0:00:11]} 35. hxg4 {[%clk 0:01:36]}  Qxa4 {[%clk 0:00:11]} 36. Qd3 {[%clk 0:01:31]}  Rd8 {[%clk 0:00:09]} 37. Rc4 {[%clk 0:01:31]}  Qb5 {[%clk 0:00:08]} 38. Rd1 {[%clk 0:01:32]}  a4 {[%clk 0:00:07]} 39. Qc3 {[%clk 0:01:32]}  Be7 {[%clk 0:00:04]} 40. Rc7 {[%clk 0:01:28]}  Kf8 {[%clk 0:00:04]} 41. Qe3 {[%clk 0:01:21]}  a3 {[%clk 0:00:02]} 42. Qh6 {[%clk 0:01:22]}  Kg8 {[%clk 0:00:02]} 43. Rxe7 {[%clk 0:01:21]}  Qe2 {[%clk 0:00:03]} 44. Rc1 {[%clk 0:01:01]}  Qxf3+ {[%clk 0:00:03]} 45. Kh2 {[%clk 0:01:01]}  Qf2+ {[%clk 0:00:04]} 46. Kh1 {[%clk 0:01:01]}  Qf3+ {[%clk 0:00:04]} 47. Kg1 {[%clk 0:00:56]}  Qxg4+ {[%clk 0:00:04]} 48. Kf1 {[%clk 0:00:57]}  Nf5 {[%clk 0:00:04]} 49. Rd7 {[%clk 0:00:50]}  Nxh6 {[%clk 0:00:04]} 50. Rxd8+ {[%clk 0:00:51]}  Kg7 {[%clk 0:00:05]} 51. Rcc8 {[%clk 0:00:51]}  Nf5 {[%clk 0:00:04]} 52. Rb8 {[%clk 0:00:52]}  Kh6 {[%clk 0:00:04]} 53. Rh8+ {[%clk 0:00:53]}  Kg5 {[%clk 0:00:04]} 54. Rb3 {[%clk 0:00:53]}  a2 {[%clk 0:00:04]} 55. Ra3 {[%clk 0:00:54]}  Qf4+ {[%clk 0:00:04]} 56. Kg2 {[%clk 0:00:55]}  Qd2+ {[%clk 0:00:04]} 57. Kh3 {[%clk 0:00:55]}  a1=Q {[%clk 0:00:03]} 58. Rxa1 {[%clk 0:00:55]}  Qd3+ {[%clk 0:00:03]} 59. Kh2 {[%clk 0:00:55]}  Qc2+ {[%clk 0:00:04]} 60. Kh1 {[%clk 0:00:56]}  Qe4+ {[%clk 0:00:04]} 61. Kh2 {[%clk 0:00:56]}  Qe2+ {[%clk 0:00:04]} 62. Kh1 {[%clk 0:00:56]}  Nxd4 {[%clk 0:00:04]} 63. Rg1+ {[%clk 0:00:54]}  Kf5 {[%clk 0:00:04]} 64. Rh2 {[%clk 0:00:55]}  Qe4+ {[%clk 0:00:04]} 65. Rhg2 {[%clk 0:00:54]}  g5 {[%clk 0:00:04]} 66. Kh2 {[%clk 0:00:54]}  Nf3+ {[%clk 0:00:04]} 67. Kg3 {[%clk 0:00:53]}  Nxg1 {[%clk 0:00:05]} 68. Rf2+ {[%clk 0:00:54]}  Qf4+ {[%clk 0:00:05]} 69. Kg2 {[%clk 0:00:53]}  Qxf2+ {[%clk 0:00:05]} 70. Kh1 {[%clk 0:00:54]}  Qd4 {[%clk 0:00:04]} 71. Kg2 {[%clk 0:00:55]}  Qd8 {[%clk 0:00:05]} 72. Kh1 {[%clk 0:00:55]}  Kxe5 {[%clk 0:00:05]} 73. Kg2 {[%clk 0:00:56]}  Kf6 {[%clk 0:00:06]} 74. Kh1 {[%clk 0:00:57]}  Nf3 {[%clk 0:00:07]} 75. Kg2 {[%clk 0:00:58]}  Ne5 {[%clk 0:00:07]} 76. Kh1 {[%clk 0:00:59]}  Nd7 {[%clk 0:00:08]} 77. Kg2 {[%clk 0:01:00]}  Ke5 {[%clk 0:00:09]} 78. Kh1 {[%clk 0:01:01]}  f6 {[%clk 0:00:10]} 79. Kg2 {[%clk 0:01:02]}  f5 {[%clk 0:00:11]} 80. Kh1 {[%clk 0:01:02]}  Kd6 {[%clk 0:00:12]} 81. Kg2 {[%clk 0:01:03]}  e5 {[%clk 0:00:13]} 82. Kh1 {[%clk 0:01:04]}  e4 {[%clk 0:00:14]} 83. Kg2 {[%clk 0:01:05]}  Kd5 {[%clk 0:00:15]} 84. Kh1 {[%clk 0:01:06]}  Kc4 {[%clk 0:00:15]} 85. Kg2 {[%clk 0:01:07]}  Kc3 {[%clk 0:00:16]} 86. Kh1 {[%clk 0:01:08]}  Kc2 {[%clk 0:00:17]} 87. Kg2 {[%clk 0:01:09]}  Kd3 {[%clk 0:00:18]} 88. Kh2 {[%clk 0:01:10]}  e3 {[%clk 0:00:19]} 89. Kg2 {[%clk 0:01:11]}  Kd2 {[%clk 0:00:20]} 90. Kh1 {[%clk 0:01:11]}  e2 {[%clk 0:00:20]} 91. Kg2 {[%clk 0:01:12]}  Qe8 {[%clk 0:00:21]} 92. Kh3 {[%clk 0:01:13]}  Qe3+ {[%clk 0:00:21]} 93. Kh2 {[%clk 0:01:14]}  Qf4+ {[%clk 0:00:21]} 94. Kg2 {[%clk 0:01:15]}  Qg4+ {[%clk 0:00:21]} 95. Kh2 {[%clk 0:01:15]}  Ne5 {[%clk 0:00:21]} 96. Kh1 {[%clk 0:01:15]}  e1=Q+ {[%clk 0:00:21]} 0-1


[Site "https://www.chess.com"]

[Event "Titled Tuesday Blitz September 20 Late 2022"]
[White "Melkumyan, Hrant"]
[Black "Panarin, Mikhail"]
[WhiteFideId "13302485"]
[BlackFideId "4153251"]
[WhiteElo "2604"]
[BlackElo "2495"]
[Result "1-0"]
[Round "10"]
[TimeControl "180+1"]
[Date "2022.09.20"]
[WhiteClock "0:00:19"]
[BlackClock "0:00:03"]

1. Nf3 {[%clk 0:03:00]}  c5 {[%clk 0:03:00]} 2. c4 {[%clk 0:02:59]}  Nc6 {[%clk 0:03:00]} 3. Nc3 {[%clk 0:03:00]}  g6 {[%clk 0:02:58]} 4. e3 {[%clk 0:03:00]}  Nf6 {[%clk 0:02:58]} 5. d4 {[%clk 0:03:01]}  cxd4 {[%clk 0:02:59]} 6. exd4 {[%clk 0:03:01]}  d5 {[%clk 0:03:00]} 7. cxd5 {[%clk 0:03:02]}  Nxd5 {[%clk 0:03:01]} 8. Qb3 {[%clk 0:03:03]}  Nxc3 {[%clk 0:03:01]} 9. Bc4 {[%clk 0:03:02]}  e6 {[%clk 0:03:02]} 10. bxc3 {[%clk 0:03:02]}  Bd7 {[%clk 0:03:02]} 11. Be2 {[%clk 0:02:59]}  Na5 {[%clk 0:02:43]} 12. Qb2 {[%clk 0:02:51]}  Bc6 {[%clk 0:02:35]} 13. O-O {[%clk 0:02:48]}  Bg7 {[%clk 0:02:29]} 14. Qb4 {[%clk 0:02:42]}  Bf8 {[%clk 0:02:14]} 15. Qb2 {[%clk 0:02:42]}  Bg7 {[%clk 0:02:14]} 16. Qb4 {[%clk 0:02:42]}  Bf8 {[%clk 0:02:13]} 17. Qb1 {[%clk 0:02:43]}  Bg7 {[%clk 0:02:13]} 18. Ba3 {[%clk 0:02:39]}  Bf8 {[%clk 0:02:13]} 19. Qb2 {[%clk 0:02:27]}  Bxa3 {[%clk 0:01:47]} 20. Qxa3 {[%clk 0:02:28]}  b6 {[%clk 0:01:47]} 21. Ne5 {[%clk 0:02:26]}  Qe7 {[%clk 0:01:41]} 22. Qb4 {[%clk 0:02:19]}  Rc8 {[%clk 0:01:28]} 23. Rac1 {[%clk 0:02:07]}  Kf8 {[%clk 0:01:02]} 24. Rfe1 {[%clk 0:02:02]}  Be8 {[%clk 0:00:54]} 25. Qb2 {[%clk 0:01:56]}  h5 {[%clk 0:00:45]} 26. Bf1 {[%clk 0:01:55]}  Qf6 {[%clk 0:00:43]} 27. Re3 {[%clk 0:01:49]}  Nc6 {[%clk 0:00:29]} 28. Rf3 {[%clk 0:01:43]}  Qg5 {[%clk 0:00:27]} 29. h4 {[%clk 0:01:41]}  Qh6 {[%clk 0:00:23]} 30. Re1 {[%clk 0:01:39]}  Nxe5 {[%clk 0:00:23]} 31. Rxe5 {[%clk 0:01:40]}  Kg8 {[%clk 0:00:17]} 32. Qa3 {[%clk 0:01:29]}  Rc7 {[%clk 0:00:16]} 33. Qd6 {[%clk 0:01:25]}  Rd7 {[%clk 0:00:16]} 34. Qb8 {[%clk 0:01:19]}  Re7 {[%clk 0:00:15]} 35. Qd8 {[%clk 0:01:15]}  Qf8 {[%clk 0:00:14]} 36. Bd3 {[%clk 0:01:11]}  Bc6 {[%clk 0:00:13]} 37. Qxf8+ {[%clk 0:00:53]}  Kxf8 {[%clk 0:00:14]} 38. Rg3 {[%clk 0:00:54]}  Kg7 {[%clk 0:00:13]} 39. Bc2 {[%clk 0:00:49]}  Rc7 {[%clk 0:00:13]} 40. Bb3 {[%clk 0:00:47]}  Rd8 {[%clk 0:00:12]} 41. Rxh5 {[%clk 0:00:45]}  Be4 {[%clk 0:00:08]} 42. Re5 {[%clk 0:00:45]}  Bf5 {[%clk 0:00:08]} 43. h5 {[%clk 0:00:42]}  Kf6 {[%clk 0:00:05]} 44. hxg6 {[%clk 0:00:40]}  Bxg6 {[%clk 0:00:05]} 45. Ree3 {[%clk 0:00:39]}  Rdc8 {[%clk 0:00:05]} 46. Rgf3+ {[%clk 0:00:39]}  Kg7 {[%clk 0:00:06]} 47. Rg3 {[%clk 0:00:38]}  b5 {[%clk 0:00:05]} 48. Bc2 {[%clk 0:00:32]}  Rc6 {[%clk 0:00:02]} 49. Bxg6 {[%clk 0:00:32]}  fxg6 {[%clk 0:00:03]} 50. Kf1 {[%clk 0:00:19]}  a6 {[%clk 0:00:04]} 51. Ke1 {[%clk 0:00:19]}  Kf7 {[%clk 0:00:04]} 52. Kd2 {[%clk 0:00:19]}  Rc4 {[%clk 0:00:02]} 53. Rgf3+ {[%clk 0:00:18]}  Kg7 {[%clk 0:00:02]} 54. Rxe6 {[%clk 0:00:17]}  Ra4 {[%clk 0:00:02]} 55. Rff6 {[%clk 0:00:16]}  Rxa2+ {[%clk 0:00:03]} 56. Kd3 {[%clk 0:00:17]}  Ra3 {[%clk 0:00:02]} 57. Rxg6+ {[%clk 0:00:17]}  Kf7 {[%clk 0:00:03]} 58. Ref6+ {[%clk 0:00:18]}  Ke7 {[%clk 0:00:03]} 59. Rc6 {[%clk 0:00:19]} 1-0


[Site "https://www.chess.com"]

[Event "Titled Tuesday Blitz September 20 Late 2022"]
[White "Muradli, Mahammad"]
[Black "Vasquez Schroeder, Rodrigo"]
[WhiteFideId "13409301"]
[BlackFideId "3400042"]
[WhiteElo "2611"]
[BlackElo "2577"]
[Result "1-0"]
[Round "10"]
[TimeControl "180+1"]
[Date "2022.09.20"]
[WhiteClock "0:00:05"]
[BlackClock "0:00:14"]

1. c4 {[%clk 0:03:00]}  c5 {[%clk 0:02:57]} 2. Nf3 {[%clk 0:03:00]}  Nf6 {[%clk 0:02:57]} 3. Nc3 {[%clk 0:03:00]}  e6 {[%clk 0:02:58]} 4. g3 {[%clk 0:03:00]}  b6 {[%clk 0:02:58]} 5. Bg2 {[%clk 0:03:00]}  Bb7 {[%clk 0:02:58]} 6. O-O {[%clk 0:03:00]}  a6 {[%clk 0:02:58]} 7. Re1 {[%clk 0:02:59]}  d6 {[%clk 0:02:58]} 8. e4 {[%clk 0:02:59]}  Be7 {[%clk 0:02:55]} 9. d4 {[%clk 0:02:56]}  cxd4 {[%clk 0:02:55]} 10. Nxd4 {[%clk 0:02:57]}  Qc7 {[%clk 0:02:56]} 11. b3 {[%clk 0:02:18]}  O-O {[%clk 0:02:49]} 12. Bb2 {[%clk 0:02:17]}  Nbd7 {[%clk 0:02:48]} 13. Rc1 {[%clk 0:02:18]}  Rac8 {[%clk 0:02:48]} 14. h3 {[%clk 0:02:13]}  Rfe8 {[%clk 0:02:47]} 15. Qd2 {[%clk 0:02:06]}  Bf8 {[%clk 0:02:44]} 16. g4 {[%clk 0:02:04]}  h6 {[%clk 0:02:44]} 17. Kh1 {[%clk 0:02:02]}  Qb8 {[%clk 0:02:41]} 18. f4 {[%clk 0:02:00]}  Qa8 {[%clk 0:02:37]} 19. Rcd1 {[%clk 0:01:46]}  Red8 {[%clk 0:02:35]} 20. Qe2 {[%clk 0:01:46]}  Nc5 {[%clk 0:02:32]} 21. h4 {[%clk 0:01:31]}  d5 {[%clk 0:02:21]} 22. cxd5 {[%clk 0:01:14]}  exd5 {[%clk 0:02:21]} 23. e5 {[%clk 0:01:14]}  Nfe4 {[%clk 0:02:21]} 24. Nxe4 {[%clk 0:01:12]}  dxe4 {[%clk 0:02:17]} 25. Nf5 {[%clk 0:01:06]}  Nd3 {[%clk 0:02:15]} 26. Rf1 {[%clk 0:01:05]}  Bc5 {[%clk 0:01:58]} 27. e6 {[%clk 0:00:46]}  e3 {[%clk 0:01:42]} 28. exf7+ {[%clk 0:00:19]}  Kxf7 {[%clk 0:01:42]} 29. Bxb7 {[%clk 0:00:16]}  Qxb7+ {[%clk 0:01:42]} 30. Kh2 {[%clk 0:00:17]}  Nf2 {[%clk 0:01:37]} 31. Qc4+ {[%clk 0:00:13]}  Kg6 {[%clk 0:01:28]} 32. Qe6+ {[%clk 0:00:10]}  Kh7 {[%clk 0:01:28]} 33. Rxd8 {[%clk 0:00:10]}  Rxd8 {[%clk 0:01:23]} 34. Bxg7 {[%clk 0:00:07]}  Nxg4+ {[%clk 0:01:17]} 35. Kg3 {[%clk 0:00:08]}  e2 {[%clk 0:01:15]} 36. Qxe2 {[%clk 0:00:07]}  Ne3 {[%clk 0:01:12]} 37. Nxe3 {[%clk 0:00:06]}  Qxg7+ {[%clk 0:01:12]} 38. Kh3 {[%clk 0:00:05]}  Re8 {[%clk 0:01:06]} 39. Qd3+ {[%clk 0:00:05]}  Kh8 {[%clk 0:01:06]} 40. Nf5 {[%clk 0:00:03]}  Qg6 {[%clk 0:01:03]} 41. Rf3 {[%clk 0:00:04]}  Re1 {[%clk 0:01:00]} 42. Ng3 {[%clk 0:00:04]}  Qe6+ {[%clk 0:00:53]} 43. f5 {[%clk 0:00:04]}  Qf7 {[%clk 0:00:52]} 44. Qd2 {[%clk 0:00:04]}  Re8 {[%clk 0:00:49]} 45. Qxh6+ {[%clk 0:00:04]}  Kg8 {[%clk 0:00:49]} 46. Qg6+ {[%clk 0:00:05]}  Kf8 {[%clk 0:00:48]} 47. h5 {[%clk 0:00:05]}  Re7 {[%clk 0:00:44]} 48. h6 {[%clk 0:00:06]}  Qg8 {[%clk 0:00:44]} 49. Nh5 {[%clk 0:00:05]}  Qd5 {[%clk 0:00:41]} 50. Qf6+ {[%clk 0:00:02]}  Rf7 {[%clk 0:00:41]} 51. Qh8+ {[%clk 0:00:02]}  Ke7 {[%clk 0:00:42]} 52. Rg3 {[%clk 0:00:02]}  Qxf5+ {[%clk 0:00:41]} 53. Kh4 {[%clk 0:00:02]}  Bf2 {[%clk 0:00:41]} 54. Qg8 {[%clk 0:00:01]}  Qe4+ {[%clk 0:00:39]} 55. Kh3 {[%clk 0:00:02]}  Bxg3 {[%clk 0:00:31]} 56. Qxg3 {[%clk 0:00:03]}  Qf5+ {[%clk 0:00:30]} 57. Kh4 {[%clk 0:00:03]}  Qe6 {[%clk 0:00:31]} 58. Qg5+ {[%clk 0:00:03]}  Kd6 {[%clk 0:00:30]} 59. Nf4 {[%clk 0:00:03]}  Qe1+ {[%clk 0:00:28]} 60. Kh5 {[%clk 0:00:03]}  Qh1+ {[%clk 0:00:28]} 61. Kg6 {[%clk 0:00:03]}  Re7 {[%clk 0:00:29]} 62. Qf6+ {[%clk 0:00:03]}  Kd7 {[%clk 0:00:28]} 63. Qf5+ {[%clk 0:00:04]}  Kd8 {[%clk 0:00:28]} 64. Ne6+ {[%clk 0:00:03]}  Kd7 {[%clk 0:00:24]} 65. Ng5+ {[%clk 0:00:04]}  Kd8 {[%clk 0:00:19]} 66. h7 {[%clk 0:00:03]}  Re8 {[%clk 0:00:16]} 67. Qf6+ {[%clk 0:00:03]}  Kd7 {[%clk 0:00:16]} 68. Qf5+ {[%clk 0:00:03]}  Kc7 {[%clk 0:00:17]} 69. Qf7+ {[%clk 0:00:03]}  Kd8 {[%clk 0:00:17]} 70. Ne6+ {[%clk 0:00:04]}  Rxe6+ {[%clk 0:00:17]} 71. Qxe6 {[%clk 0:00:04]}  Qg2+ {[%clk 0:00:17]} 72. Kf7 {[%clk 0:00:05]}  Qh2 {[%clk 0:00:16]} 73. Qf6+ {[%clk 0:00:05]}  Kd7 {[%clk 0:00:16]} 74. h8=Q {[%clk 0:00:06]}  Qe2 {[%clk 0:00:14]} 75. Qhd8# {[%clk 0:00:05]} 1-0


[Site "https://www.chess.com"]

[Event "Titled Tuesday Blitz September 20 Late 2022"]
[White "Perske, Thore"]
[Black "Makaraci, Tunahan"]
[WhiteFideId "12902195"]
[BlackFideId "6356559"]
[WhiteElo "2315"]
[BlackElo "2003"]
[Result "0-1"]
[Round "10"]
[TimeControl "180+1"]
[Date "2022.09.20"]
[WhiteClock "0:00:40"]
[BlackClock "0:01:13"]

1. e4 {[%clk 0:03:00]}  Nf6 {[%clk 0:02:59]} 2. Nc3 {[%clk 0:02:51]}  d5 {[%clk 0:02:59]} 3. e5 {[%clk 0:02:50]}  Nfd7 {[%clk 0:02:59]} 4. d4 {[%clk 0:02:50]}  c5 {[%clk 0:02:59]} 5. Nxd5 {[%clk 0:02:49]}  cxd4 {[%clk 0:02:59]} 6. Qxd4 {[%clk 0:02:39]}  Nb6 {[%clk 0:02:59]} 7. Bb5+ {[%clk 0:02:05]}  Nc6 {[%clk 0:02:58]} 8. c4 {[%clk 0:02:04]}  e6 {[%clk 0:02:57]} 9. Nf3 {[%clk 0:02:04]}  exd5 {[%clk 0:02:56]} 10. cxd5 {[%clk 0:02:02]}  Qxd5 {[%clk 0:02:57]} 11. Qxd5 {[%clk 0:01:58]}  Nxd5 {[%clk 0:02:57]} 12. O-O {[%clk 0:01:59]}  Bd7 {[%clk 0:02:54]} 13. Rd1 {[%clk 0:01:56]}  Nb6 {[%clk 0:02:51]} 14. Be3 {[%clk 0:01:54]}  Be7 {[%clk 0:02:49]} 15. a4 {[%clk 0:01:52]}  Rd8 {[%clk 0:02:17]} 16. a5 {[%clk 0:01:51]}  Nc8 {[%clk 0:02:17]} 17. a6 {[%clk 0:01:45]}  bxa6 {[%clk 0:02:12]} 18. Rxa6 {[%clk 0:01:45]}  Nb8 {[%clk 0:02:08]} 19. Bxd7+ {[%clk 0:01:36]}  Rxd7 {[%clk 0:02:07]} 20. Rxd7 {[%clk 0:01:34]}  Nxd7 {[%clk 0:02:06]} 21. Bxa7 {[%clk 0:01:32]}  O-O {[%clk 0:02:01]} 22. Bd4 {[%clk 0:01:27]}  Bc5 {[%clk 0:01:58]} 23. Bc3 {[%clk 0:01:23]}  Bb6 {[%clk 0:01:31]} 24. h4 {[%clk 0:01:21]}  Ne7 {[%clk 0:01:29]} 25. h5 {[%clk 0:01:18]}  h6 {[%clk 0:01:28]} 26. Bb4 {[%clk 0:01:17]}  Re8 {[%clk 0:01:26]} 27. Bd6 {[%clk 0:01:05]}  Nf5 {[%clk 0:01:14]} 28. Kf1 {[%clk 0:00:54]}  Nxd6 {[%clk 0:01:14]} 29. exd6 {[%clk 0:00:55]}  Re6 {[%clk 0:01:15]} 30. Ra8+ {[%clk 0:00:40]}  Kh7 {[%clk 0:01:13]} 0-1


[Site "https://www.chess.com"]